Cogmind - Beta 16 @@@ ROGUE MODE // 2025.10.26 @ 08:55:56 Player: Moodge Result: Destroyed by Y-45 Defender with Beam Rifle Performance ------------- Evolutions (2) 1000 Regions Visited (3) 600 Robots Destroyed (82) 410 Value Destroyed (2544) 2544 Prototype IDs (2) 40 Alien Tech Used (0) 0 Bonus (11) 11 TOTAL SCORE: 4605 Bonus ------- High Alert Combat Kills 11 Cogmind --------- Core Integrity 0/550 Matter 265/300 Energy 148/430 System Corruption 0% Temperature Cool (31) Movement Walking (183) Ox1 Location -8/Materials Parts ------- > --- POWER (2) -------- Improved Ion Engine Improved Ion Engine > --- PROPULSION (4) --- Aluminum Leg Aluminum Leg Titanium Leg > --- UTILITY (3) ------ High-capacity Storage Unit Improved Targeting Computer > --- WEAPON (2) ------- Katana > --- INVENTORY (20) --- Light Nuclear Core Armored Treads Improved Hover Unit High-capacity Storage Unit Structural Scanner Visual Processing Unit Signal Interpreter Advanced Terrain Scan Processor Advanced Terrain Scan Processor Layered Light Armor Plating Peak State ------------ > --- POWER ------------ Light Nuclear Core Light Nuclear Core > --- PROPULSION ------- Aluminum Leg Aluminum Leg Improved Aluminum Leg Carbon-fiber Leg > --- UTILITY ---------- High-capacity Storage Unit Improved Targeting Computer Layered Light Armor Plating > --- WEAPON ----------- Plasma Cannon Plasma Cannon > --- INVENTORY -------- Improved Ion Engine Improved Ion Engine Light Nuclear Core Light Nuclear Core Improved Hover Unit Improved Heat Sink High-capacity Storage Unit Structural Scanner Structural Scanner Visual Processing Unit Signal Interpreter Advanced Terrain Scan Processor Advanced Terrain Scan Processor Advanced Terrain Scan Processor Advanced Terrain Scan Processor Layered Light Armor Plating Layered Light Armor Plating Plasma Cannon Plasma Cutter Katana [Rating: 33] Favorites ----------- Power Ion Engine Engine Ion Engine Power Core Light Nuclear Core Propulsion Aluminum Leg Leg Aluminum Leg Wheel Wheel Hover Unit Hover Unit Utility High-capacity Storage Unit Device Structural Scanner Storage High-capacity Storage Unit Processor Improved Targeting Computer Protection Layered Light Armor Plating Weapon Autogun Energy Gun Improved EM Shotgun Energy Cannon Plasma Cannon Ballistic Gun Autogun Special Weapon Plasma Cutter Slashing Weapon Katana Build | -11 -10 -9 -8 ------- Run | Yrd Mat Mat Mat Slots Evolved 4 | . . 2 2 Power 1 | . . . 1 Propulsion 2 | . . 2 . Utility 1 | . . . 1 Weapon . | . . . . Parts Attached 74 | 7 11 30 26 Power 14 | 1 2 3 8 Engine 9 | 1 2 2 4 Core 5 | . . 1 4 Reactor . | . . . . Propulsion 29 | 3 4 14 8 Treads . | . . . . Leg 26 | 2 4 12 8 Wheel 1 | 1 . . . Hover 2 | . . 2 . Flight . | . . . . Utility 11 | 1 3 3 4 Device 2 | . . 1 1 Storage 3 | 1 1 . 1 Processor 3 | . 1 2 . Hackware . | . . . . Protection 3 | . 1 . 2 Artifact . | . . . . Weapon 20 | 2 2 10 6 Energy Gun 5 | 1 . 4 . Energy Cannon 4 | . . . 4 Ballistic Gun 9 | 1 2 6 . Ballistic Cannon . | . . . . Launcher . | . . . . Special Weapon 1 | . . . 1 Impact Weapon . | . . . . Slashing Weapon 1 | . . . 1 Piercing Weapon . | . . . . Special Melee Weapon . | . . . . Unidentified Prototypes 2 | . . 2 . Parts Lost 37 | . 7 10 20 Power 9 | . 2 2 5 Propulsion 18 | . 3 6 9 Utility 2 | . . . 2 Weapon 8 | . 2 2 4 Highest Loss Streak 6 | . 3 2 6 To Critical Strikes . | . . . . Average Backups 16 | 2 10 18 17 Power 2 | 1 2 2 3 Propulsion 2 | . 3 2 1 Utility 7 | . 3 8 9 Weapon 3 | . 1 4 1 Tool/Special . | . . . . Unused Backups 28 | . . 11 17 Power 3 | . . 1 2 Propulsion 5 | . . 4 1 Utility 14 | . . 3 11 Weapon 6 | . . 3 3 Tool/Special . | . . . . Average Slot Usage (%) 87 | . 95 84 89 Engine 9 | . 12 9 6 Core 2 | . . 1 9 Leg 27 | . 27 25 31 Hover 2 | . . 3 . Device 2 | . . 3 2 Storage 11 | . 14 11 9 Processor 7 | . 9 7 9 Protection 1 | . 3 . 6 Energy Gun 5 | . 6 7 . Energy Cannon 1 | . . . 7 Ballistic Gun 14 | . 21 14 5 Peak Build Rating 33 | 6 8 17 33 Average Rating 14 | 3 7 14 24 On Entrance 7 | . 6 8 17 Avg Prop Armor Cover (%) 4 | . . 4 . Naked Turns . | . . . . Heaviest Build 68 | 13 50 54 68 Greatest Support 48 | 20 20 43 48 Greatest Overweight (x) 17 | 2 4 17 4 Average Overweight (x) 2 | . 1 2 1 Largest Inventory Capacity 20 | 8 20 20 20 Average Capacity 19 | 6 18 20 20 Most Carried 20 | 5 17 20 20 Average Carried 16 | 3 10 18 17 Final Capacity 20 | 8 20 20 20 Final Carried 19 | 2 17 19 10 Class Distribution -------------------- 55% | Mutant 44% | Scavenger-Mutant Dominant Class ---------------- Mutant | -10/Materials Scavenger-Mutant | -9/Materials Scavenger-Mutant | -8/Materials Resources | -11 -10 -9 -8 ----------- Run | Yrd Mat Mat Mat Matter Collected 1994 | 182 294 1036 482 Remotely . | . . . . Salvage Created 3016 | . 471 1614 931 Parts 192 | . 29 115 48 Haulers Intercepted 1 | . . 1 . Recyclers Shooed . | . . . . Parts Field Recycled . | . . . . Retrieved Matter . | . . . . Parts Self-Destructed . | . . . . Prevented . | . . . . Parts Restored . | . . . . Kills | -11 -10 -9 -8 ------- Run | Yrd Mat Mat Mat Combat Hostiles Destroyed 70 | . 14 35 21 Melee 5 | . . . 5 Guns 57 | . 14 33 10 Cannons 6 | . . . 6 AOE 2 | . . 2 . Classes Destroyed 9 | . 3 5 1 Builder 2 | . . 2 . Hauler 1 | . . 1 . Mechanic 2 | . . 2 . Watcher 7 | . 1 5 1 Swarmer 18 | . 6 7 5 Grunt 38 | . 8 18 12 Duelist 1 | . . 1 . Sentry 12 | . . 9 3 Hunter 1 | . . . 1 Best Kill Streak 9 | . 6 9 6 Combat Bots Only 9 | . 6 9 5 Max Kills in Single Turn 2 | . 1 2 1 Gunslinging . | . . . . Exploded 1 | . . 1 . Melee 1 | . . . 1 Uniques/NPCs Destroyed . | . . . . Combat | -11 -10 -9 -8 -------- Run | Yrd Mat Mat Mat Hostile Shots Fired 495 | . 123 164 208 Missed 118 | . 29 42 47 Hits 377 | . 94 122 161 Melee 2 | . . 2 . Projectile 375 | . 94 120 161 Critical Strikes 10 | . 3 4 3 Damage Taken 4959 | . 995 1663 2301 Core 1024 | . 184 281 559 Absorbed by Shields . | . . . . Regen/Repaired (Parts) 13 | . 13 . . Core Remaining (%) 51 | 100 26 29 . Volleys Fired 217 | 1 56 107 53 Largest 2 | 1 2 2 2 Hottest 160 | 20 60 90 160 Shots Fired 405 | 1 105 211 88 Gun 368 | 1 105 211 51 Cannon 37 | . . . 37 Launcher . | . . . . Special . | . . . . Kinetic 312 | 1 74 186 51 Thermal 68 | . 31 . 37 Explosive . | . . . . Electromagnetic 25 | . . 25 . Robot Hit Streak 23 | . 13 23 19 Robot Miss Streak 11 | . 4 11 4 Penetration Max . | . . . . Secondary Targets 2 | . 1 . 1 Max Gunslinging Chain 1 | . 1 . 1 Shots Hit Robots 304 | . 73 152 79 Core Hits 142 | . 26 80 36 Critical Kills . | . . . . Critical Parts Destroyed 1 | . . 1 . Critical Strikes 2 | . . 1 1 Destroy 1 | . . 1 . Sever 1 | . . . 1 Melee Attacks 24 | . . . 24 Impact . | . . . . Slashing 24 | . . . 24 Piercing . | . . . . Sneak Attacks 2 | . . . 2 Combat Hostiles 1 | . . . 1 Follow-up Attacks . | . . . . Damage Inflicted 4957 | . 715 2379 1863 Guns 3494 | . 715 2237 542 Cannons 673 | . . . 673 Explosions 127 | . . 127 . Melee 646 | . . . 646 Ramming 17 | . . 15 2 Kinetic 3043 | . 511 1990 542 Thermal 1004 | . 204 127 673 Explosive . | . . . . Electromagnetic 247 | . . 247 . Impact . | . . . . Slashing 646 | . . . 646 Piercing . | . . . . Highest Corruption 1 | . . 1 . Average Corruption 1 | . . 1 . Corruption Purged . | . . . . Corruption Blocked . | . . . . Effects 11 | . . 11 . Message Errors 1 | . . 1 . Matter Fused 2 | . . 2 . Heat Flow Errors 4 | . . 4 . Energy Discharges 1 | . . 1 . Data Loss (minor) 2 | . . 2 . Alerts 1 | . . 1 . Overload Shots . | . . . . Overflow Damage 132 | . . 75 57 Projectiles 7 | . . . 7 Explosions 75 | . . 75 . Melee 50 | . . . 50 Knockbacks . | . . . . Impact . | . . . . Kinetic . | . . . . Secondary . | . . . . Self-Inflicted Damage 188 | . . 188 . Shots 4 | . . 4 . Rammed 1 | . . 1 . Targets Rammed 3 | . . 2 1 Kicked 2 | . . 1 1 Crushed . | . . . . Highest Temperature 825 | . 30 278 825 Average Temperature 134 | . 11 30 248 Received Heat Transfer 1863 | . 411 615 837 Effects 49 | . . . 49 Shutdowns 11 | . . . 11 Energy Bleed 5 | . . . 5 Interference 2 | . . . 2 Matter Decay 4 | . . . 4 Short Circuit 1 | . . . 1 Damage (minor) 5 | . . . 5 Damage (major) 19 | . . . 19 Damage (core) 2 | . . . 2 Siege Activations . | . . . . Martial Activations . | . . . . Shielding Activations . | . . . . Robots Disrupted 1 | . . 1 . Combat Hostiles 1 | . . 1 . Robots Corrupted . | . . . . Combat Hostiles . | . . . . Parts Fried 1 | . . 1 . Impact Corruptions . | . . . . Robots Melted . | . . . . Combat Hostiles . | . . . . Parts Melted 4 | . . 1 3 Heat Transferred 1975 | . 475 200 1300 Parts Sabotaged . | . . . . Parts Stolen . | . . . . Parts Stripped . | . . . . Power Chain Reactions 3 | . . 3 . Alert | -11 -10 -9 -8 ------- Run | Yrd Mat Mat Mat Maximum Alert Level 2 | . . 2 1 Low Security (%) 50 | 100 100 28 63 Level 1 49 | . . 70 36 Level 2 . | . . 1 . Level 3 . | . . . . Level 4 . | . . . . Level 5 . | . . . . High Security . | . . . . Max Security . | . . . . Peak Influence 423 | . 103 423 310 Initial 177 | . . 4 177 Average 186 | . 28 238 194 Influence Increases 2058 | . 364 1065 629 Destroy 0b10 Robot/C 1400 | . 280 700 420 Destroy 0b10 Robot/NC 60 | . 5 50 5 Destroy Leader 336 | . 62 182 92 Successful Hack 33 | . . 33 . Disable Machine 90 | . . 45 45 Destroy Structure 49 | . 2 40 7 Lose Combat Pursuer 90 | . 15 15 60 Influence Decreases 1898 | . 352 656 890 Entered New Map 252 | . . 8 244 Time Decay 1296 | . 302 548 446 Lost Part 350 | . 50 100 200 Squads Dispatched 8 | . 3 2 3 Investigation 2 | . 1 1 . Extermination . | . . . . Reinforcement 6 | . 2 1 3 Assault . | . . . . Garrison . | . . . . Intercept . | . . . . Searches Triggered . | . . . . Construction Impeded . | . . . . Haulers Reinforced . | . . . . Active Scanning Responses . | . . . . Cargo Convoy Interrupts . | . . . . Stealth | -11 -10 -9 -8 --------- Run | Yrd Mat Mat Mat Distress Signals 5 | . 2 2 1 Communications Jammed . | . . . . Distress Signals . | . . . . Times Spotted 111 | . 22 51 38 Peak Tracking Total 9 | . 4 4 9 Tactical Retreats 5 | . 1 1 3 Traps | -11 -10 -9 -8 ------- Run | Yrd Mat Mat Mat Traps Triggered 2 | . 1 1 . Indirectly . | . . . . Trap Hack Attempts . | . . . . Triggered . | . . . . Disarmed . | . . . . Reprogrammed . | . . . . Reused . | . . . . Traps Extracted . | . . . . Installed . | . . . . Triggered . | . . . . Machines | -11 -10 -9 -8 ---------- Run | Yrd Mat Mat Mat Machines Disabled 6 | . . 3 3 Max in Single Turn 2 | . . 2 1 Machines Repaired . | . . . . Machines Dismantled . | . . . . Machines Sabotaged . | . . . . Overloaded Fab Kills . | . . . . Hacking | -11 -10 -9 -8 --------- Run | Yrd Mat Mat Mat Machines Accessed 7 | . 2 4 1 Terminals 4 | . 1 2 1 Fabricators . | . . . . Repair Stations 2 | . 1 1 . Recycling Units . | . . . . Scanalyzers 1 | . . 1 . Garrison Access . | . . . . Total Hacks 27 | . 6 20 1 Successful 19 | . 3 15 1 Failed 7 | . 3 4 . Catastrophic . | . . . . Database Lockouts 1 | . . 1 . Manual . | . . . . Terminals 9 | . 2 6 1 Fabricators . | . . . . Repair Stations 7 | . 4 3 . Recycling Units . | . . . . Scanalyzers 11 | . . 11 . Garrison Access . | . . . . Terminal Hacks 5 | . . 4 1 Record 3 | . . 2 1 Alert Level 1 | . . 1 . Transport Status 1 | . . 1 . Fabricator Hacks . | . . . . Repair Station Hacks 4 | . 3 1 . Scan Component 3 | . 2 1 . Repair 1 | . 1 . . Recycling Unit Hacks . | . . . . Scanalyzer 10 | . . 10 . Insert Component 3 | . . 3 . Analyze 3 | . . 3 . Retrieve Study 4 | . . 4 . Garrison Access Hacks . | . . . . Unauthorized Hacks . | . . . . Terminals . | . . . . Fabricators . | . . . . Repair Stations . | . . . . Recycling Units . | . . . . Scanalyzers . | . . . . Garrison Access . | . . . . Data Cores Recovered . | . . . . Used . | . . . . Hacking Detections 7 | . 2 4 1 Full Trace Events 3 | . 1 2 . Feedback Events . | . . . . Feedback Blocked . | . . . . Robot Schematics Acquired . | . . . . Robots Built . | . . . . Authchips . | . . . . Time . | . . . . Total Robot Build Rating . | . . . . Part Schematics Acquired 3 | . . 3 . Parts Built . | . . . . Authchips . | . . . . Time . | . . . . Total Part Build Rating . | . . . . Part Studies Acquired 4 | . . 4 . Parts Repaired 1 | . 1 . . Time 26 | . 26 . . Parts Recycled . | . . . . Recycled Matter . | . . . . Retrieved Matter . | . . . . Retrieved Components . | . . . . Parts Scanalyzed 3 | . . 3 . Part Schematics Acquired 3 | . . 3 . Parts Damaged . | . . . . Bothacking | -11 -10 -9 -8 ------------ Run | Yrd Mat Mat Mat Used RIF Installer . | . . . . Robots Hacked . | . . . . Non-combat . | . . . . Combat . | . . . . Robot Hacks Applied . | . . . . Relay Couplers Released . | . . . . Fabnet Peak Effective % . | . . . . Robots Rewired . | . . . . Allies Hacked . | . . . . Hacks Repelled . | . . . . Allies | -11 -10 -9 -8 -------- Run | Yrd Mat Mat Mat Total Allies . | . . . . Largest Group . | . . . . Highest-Rated Group . | . . . . Highest-Rated Ally . | . . . . Total Orders . | . . . . Ally Attacks . | . . . . Total Damage . | . . . . Kills . | . . . . Allies Corrupted . | . . . . Allies Melted . | . . . . Intel | -11 -10 -9 -8 ------- Run | Yrd Mat Mat Mat Active Infowar (turns) 3152 | . . 2822 330 Structural 1551 | . . 1221 330 T.N.C. 1601 | . . 1601 . Robot Analysis Total . | . . . . Derelict Logs Recovered . | . . . . Drone Launches . | . . . . Drone Recoveries . | . . . . Exploration | -11 -10 -9 -8 ------------- Run | Yrd Mat Mat Mat Turns Passed 5792 | 57 1159 3475 1101 Spaces Moved 1825 | 35 359 1099 332 Core 88 | 20 . 68 . Treads . | . . . . Legs 1529 | 15 359 823 332 Wheels . | . . . . Hover 208 | . . 208 . Flight . | . . . . Fastest Speed 50 | 50 120 175 175 Average Speed 232 | 114 226 249 192 Slowest Speed 900 | 150 400 900 400 Overloaded Moves . | . . . . Propulsion Burnouts . | . . . . Robots Hopped . | . . . . Potential Cave-ins . | . . . . Cave-ins Triggered . | . . . . Exploration Rate (%) 40 | 4 53 75 30 Regions Visited 3 Branch Regions . Pre-discovered Areas . | . . . . Known Exits Taken . | . . . . Unknown Exits Taken 3 | 1 1 1 . Scrap Searched . | . . . . Spaces Dug . | . . . . Terrain Destroyed 68 | . . 62 6 Melee . | . . . . Projectile 6 | . . . 6 AOE 62 | . . 62 . Terrain Rammed . | . . . . Walls Destroyed . | . . . . Machines Disabled . | . . . . Actions | -11 -10 -9 -8 --------- Run | Yrd Mat Mat Mat Total 2998 | 50 608 1656 684 Wait 725 | . 156 360 209 Move 1822 | 34 358 1098 332 Hop . | . . . . Pick Up 83 | 7 26 30 20 Fast Attach 7 | 2 . 1 4 Attach 41 | 5 8 13 15 Detach . | . . . . Swap 31 | . 3 18 10 Drop 45 | 1 1 27 16 Fire 217 | 1 56 107 53 Melee 24 | . . . 24 Ram 1 | . . 1 . Kick 2 | . . 1 1 Crush . | . . . . Escape Stasis . | . . . . Rewire . | . . . . Trap . | . . . . Miscellaneous . | . . . . Route ------- -11/Scrapyard -10/Materials (discovered 2 exits: *Mat / [*Min]) -9/Materials (discovered 3 exits: *Mat x2 / [*Sto]) -8/Materials History --------- Turn | Location | Event 20 | -11/Scrapyard | Discovered new exit (range 14) 58 | -11/Scrapyard | Entered Materials 84 | -10/Materials | Discovered new exit (range 16) 308 | -10/Materials | Build established: Mutant 485 | -10/Materials | Lost 3 parts (1p2n) 779 | -10/Materials | Repaired Flight Unit 876 | -10/Materials | Core integrity fell below 50% 1193 | -10/Materials | Discovered new exit (range 10) 1217 | -10/Materials | Entered another Materials area 1217 | -9/Materials | Evolved 2 slots: Propulsion x2 1661 | -9/Materials | Destroyed 9 combat bots 1955 | -9/Materials | Build established: Scavenger-Mutant 2261 | -9/Materials | Central database locked down 2834 | -9/Materials | Discovered new exit (range 5) 2915 | -9/Materials | Discovered new exit (range 10) 3218 | -9/Materials | Discovered new exit (range 15) 3356 | -9/Materials | Core integrity fell below 50% 3512 | -9/Materials | Build established: Mutant 4692 | -9/Materials | Entered another Materials area 4692 | -8/Materials | Evolved 2 slots: Power x1, Utility x1 4900 | -8/Materials | Build established: Scavenger-Mutant 5565 | -8/Materials | Core integrity fell below 50% 5595 | -8/Materials | Lost 6 parts (1p3n1u1w) 5626 | -8/Materials | Core integrity fell below 20% 5640 | -8/Materials | Lost 3 parts (1p1n1w) 5793 | -8/Materials | Destroyed by Y-45 Defender with Beam Rifle Last Messages --------------- 05659_ Sneak attack on G-47 Trooper. 05659_ Destroyed Lgt. Nuclear Core. 05660_ Lgt. Nuclear Core destroyed. 05669_ G-47 Trooper destroyed. 05672_ Acquired 36 matter. 05700_ Acquired Arm. Treads. 05718_ K-01 Serf collects debris. 05741_ Sneak attack on R-06 Scavenger. 05741_ Destroyed Lgt. Ion Engine. 05742_ K-01 Serf collects debris. 05763_ Lgt. Nuclear Core destroyed. 05765_ Acquired Titanium Leg. 05776_ G-47 Trooper destroyed. 05780_ Acquired Aluminum Leg+. 05781_ Imp. Aluminum Leg destroyed. 05783_ R-06 Scavenger collects Aluminum Leg+. 05790_ Lyr. Light Armor Plating destroyed. 05790_ G-47 Trooper destroyed. 05793_ R-06 Scavenger collects Particle Gun. 05793_ Critical hit (Burn: +37). Map ----- +----------------------------------------------------+ | ?###### #?# ###^^^ ######?"Y???????????????? | | # #?# #?# ###???????"???????????????? | | # #?# #?# #?????????????????????????? | | + #?# #?# #?????????????????????????? | | # #?# #?# #?????????????????????????? | | # ######+##### #?????????????????????????? | | ?# ##########????????????????? | | ?##################### ## [ [ #????????????????? | | ?????????????????????# ##![ #????????????????? | | ???????????#######???# ## #????????????????? | | ????????#### ##### ## "" #????????????????? | | ?? # "" #????????????????? | | ? " ! T +%""" #????????????????? | | ? # #????????????????? | | ? ####### ###### # """ #????????????????? | | ???????????#######????# # """ #????????????????? | | ??????????????????????# # "" #????????????????? | | ??????????????????????# # #????????????????? | | ??????????????????????# #########????????????????? | | ??????????????????????# #? #?????????????????????? | | ??????????????????????# #? #?????????????????????? | | ??????????????????????# #? #?????????????????????? | | ?????????????????????##+##+####??????????????????? | | ?????????????????????# a #??????????????????? | | ?????????????????????# %""" #??????????????????? | | ?????????????????????#! r@""" #??????????????????? | | ?????????????????????# Y""" #??????????????????? | | ?????????????????????#/ + ???????????????? | | ?????????????????????# """ # ???????????????? | | ?????????????????????# """ #?? ???????????????? | | ?????????????????????# """ #??????????????????? | | ?????????????????????# #??????????????????? | | ?????????????????????########?#??????????????????? | | ?????????????????????????????????????????????????? | | ?????????????????????????????????????????????????? | | ?????????????????????????????????????????????????? | | ?????????????????????????????????????????????????? | | ?????????????????????????????????????????????????? | | ?????????????????????????????????????????????????? | | ?????????????????????????????????????????????????? | | ?????????????????????????????????????????????????? | | ?????????????????????????????????????????????????? | | ?????????????????????????????????????????????????? | | ?????????????????????????????????????????????????? | | ?????????????????????????????????????????????????? | | ?????????????????????????????????????????????????? | | ?????????????????????????????????????????????????? | | ?????????????????????????????????????????????????? | | ?????????????????????????????????????????????????? | | ?????????????????????????????????????????????????? | +----------------------------------------------------+ Best States ------------- Heat Dissipation 31 Energy Generation 23 Energy Capacity 430 Matter Stores 300 Matter Capacity 300 Sight Range 16 Terrain Scan Density 10 Armor Coverage 150 Evasion (%) 55 Targeting Accuracy 6 Item Schematics ----------------- Hcp. Storage Unit | -9/Materials | Scanalyzed Signal Interpreter | -9/Materials | Scanalyzed Mining Claw | -9/Materials | Scanalyzed Robot Schematics ------------------ None Fabricated ------------ Nothing Repaired ---------- Flight Unit | 35% | -10/Materials Studied --------- Imp. Hover Unit | -9/Materials | Hacked Mining Claw | -9/Materials | Hacked Autogun | -9/Materials | Hacked Aluminum Leg | -9/Materials | Hacked Alien Tech Used ----------------- None Achievements -------------- None Challenges ------------ None Game ------ Seed IonicFlyingPerforator Manual? 0 Play Time 00:41:58 Cumulative 21.3 hours Start 2025.10.26 @ 08:17:14 End 2025.10.26 @ 08:55:56 Sessions 1 Manual Loads 0 Difficulty Rogue Special Mode None Game No. 67 Rogue 67 Adventurer 0 Explorer 0 Win Type - Total 0 Types 0/0/0/0/0/0/0/0/0/0 Lore% 9 Gallery% 21 Achievement% 18 Wizard Run 0 Options --------- Layout 1 ASCII 0 Keyboard 0 Movement Mouse Keybinds 0 Fullscreen 2 Font 32/SmallcapsGlow Map View 50x35 Zoom Use 0% Tactical HUD 1 Map Filters NONE Filters NONE Steam 1 RUN: d39b5f66-4b19-4139-9010-e629f3e53d21